Cogmind - Beta 13 @@@ ROGUE MODE // 2024.03.02 @ 21:48:52 Player: Hekatonkheires Result: Destroyed by D-53 Grenadier with Mini Grenade Launcher Performance ------------- Evolutions (0) 0 Regions Visited (2) 400 Robots Destroyed (4) 20 Value Destroyed (154) 154 Prototype IDs (0) 0 Alien Tech Used (0) 0 Bonus (0) 0 TOTAL SCORE: 574 Bonus ------- None Cogmind --------- Core Integrity 0/250 Matter 173/300 Energy 100/100 System Corruption 0% Temperature Cool (0) Movement Walking (120) Location -10/Mines Parts ------- > --- POWER (1) -------- (None) > --- PROPULSION (2) --- Aluminum Leg > --- UTILITY (2) ------ Small Storage Unit Power Shielding > --- WEAPON (2) ------- (None) > --- INVENTORY (8) ---- Light Ion Engine Wheel EM Pulse Gun EM Pulse Gun Grenade Launcher Mining Laser Peak State ------------ > --- POWER ------------ Light Ion Engine > --- PROPULSION ------- Wheel Wheel > --- UTILITY ---------- Small Storage Unit Power Shielding > --- WEAPON ----------- EM Pulse Gun EM Pulse Gun > --- INVENTORY -------- Light Ion Engine Light Treads Aluminum Leg Aluminum Leg Grenade Launcher Grenade Launcher Grenade Launcher Grenade Launcher [Rating: 7] Favorites ----------- Power Ion Engine Engine Ion Engine Propulsion Wheel Leg Aluminum Leg Wheel Wheel Utility Small Storage Unit Storage Small Storage Unit Protection Power Shielding Weapon EM Pulse Gun Energy Gun EM Pulse Gun Launcher Grenade Launcher Build | -11 -10 -10 ------- Run | Yrd Mat Min Slots Evolved . | . . . Power . | . . . Propulsion . | . . . Utility . | . . . Weapon . | . . . Parts Attached 14 | 6 3 5 Power 2 | 1 1 . Engine 2 | 1 1 . Core . | . . . Reactor . | . . . Propulsion 4 | 2 . 2 Treads . | . . . Leg 2 | . . 2 Wheel 2 | 2 . . Hover . | . . . Flight . | . . . Utility 2 | 1 1 . Device . | . . . Storage 1 | 1 . . Processor . | . . . Hackware . | . . . Protection 1 | . 1 . Artifact . | . . . Weapon 6 | 2 1 3 Energy Gun 3 | 2 1 . Energy Cannon . | . . . Ballistic Gun . | . . . Ballistic Cannon . | . . . Launcher 3 | . . 3 Special Weapon . | . . . Impact Weapon . | . . . Slashing Weapon . | . . . Piercing Weapon . | . . . Special Melee Weapon . | . . . Unidentified Prototypes . | . . . Parts Lost 6 | . . 6 Power 1 | . . 1 Propulsion 2 | . . 2 Utility . | . . . Weapon 3 | . . 3 Highest Loss Streak 4 | . . 4 To Critical Strikes . | . . . Average Slot Usage (%) 95 | . 95 96 Engine 13 | . 14 12 Leg 7 | . . 10 Wheel 19 | . 28 16 Storage 14 | . 14 14 Protection 12 | . 9 14 Energy Gun 16 | . 28 11 Launcher 10 | . . 14 Naked Turns . | . . . Heaviest Build 17 | 12 15 17 Greatest Support 20 | 20 20 20 Greatest Overweight (x) 1 | . . 1 Average Overweight (x) . | . . . Largest Inventory Capacity 8 | 8 8 8 Average Capacity 7 | 6 8 8 Most Carried 8 | 5 8 8 Average Carried 6 | 2 7 7 Final Capacity 8 | 8 8 8 Final Carried 8 | 5 8 6 Class Distribution -------------------- 100% | Mutant Dominant Class ---------------- Mutant | -10/Materials Mutant | -10/Mines Resources | -11 -10 -10 ----------- Run | Yrd Mat Min Matter Collected 323 | 221 59 43 Remotely . | . . . Salvage Created 175 | . 85 90 Parts 12 | . 8 4 Haulers Intercepted . | . . . Recyclers Shooed 1 | . 1 . Parts Field Recycled . | . . . Retrieved Matter . | . . . Parts Self-Destructed . | . . . Prevented . | . . . Kills | -11 -10 -10 ------- Run | Yrd Mat Min Combat Hostiles Destroyed 7 | . 1 6 Guns 1 | . 1 . AOE 5 | . . 5 Classes Destroyed 3 | . 2 1 Watcher 1 | . 1 . Grunt 3 | . 1 2 Assembled 4 | . . 4 Best Kill Streak 4 | . 2 4 Combat Bots Only 4 | . 1 4 Max Kills in Single Turn 1 | . 1 1 Gunslinging . | . . . Exploded 1 | . . 1 Melee . | . . . Uniques/NPCs Destroyed . | . . . Combat | -11 -10 -10 -------- Run | Yrd Mat Min Hostile Shots Fired 41 | . 10 31 Missed 11 | . 4 7 Damage Taken 886 | . 80 806 Core 251 | . 25 226 Absorbed by Shields . | . . . Redirected to Shielding 28 | . 4 24 Core Remaining (%) 100 | 100 . . Volleys Fired 25 | . 8 17 Largest 2 | . 2 2 Hottest 80 | . 80 80 Shots Fired 44 | . 16 28 Gun 30 | . 16 14 Cannon . | . . . Launcher 14 | . . 14 Special . | . . . Kinetic . | . . . Thermal . | . . . Explosive 14 | . . 14 Electromagnetic 30 | . 16 14 Robot Hit Streak 9 | . 2 9 Robot Miss Streak 2 | . 2 1 Penetration Max . | . . . Secondary Targets . | . . . Shots Hit Robots 24 | . 8 16 Core Hits 18 | . 4 14 Critical Kills . | . . . Critical Parts Destroyed . | . . . Critical Strikes 1 | . . 1 Corrupt 1 | . . 1 Melee Attacks . | . . . Impact . | . . . Slashing . | . . . Piercing . | . . . Sneak Attacks . | . . . Combat Hostiles . | . . . Follow-up Attacks . | . . . Damage Inflicted 604 | . 122 482 Guns 258 | . 122 136 Cannons . | . . . Explosions 346 | . . 346 Melee . | . . . Ramming . | . . . Kinetic . | . . . Thermal 42 | . . 42 Explosive 304 | . . 304 Electromagnetic 258 | . 122 136 Impact . | . . . Slashing . | . . . Piercing . | . . . Highest Corruption . | . . . Average Corruption . | . . . Corruption Purged . | . . . Corruption Blocked . | . . . Overload Shots . | . . . Overflow Damage . | . . . Projectiles . | . . . Explosions . | . . . Melee . | . . . Knockbacks . | . . . Impact . | . . . Kinetic . | . . . Secondary . | . . . Self-Inflicted Damage 81 | . . 81 Shots 3 | . . 3 Rammed . | . . . Targets Rammed . | . . . Kicked . | . . . Crushed . | . . . Highest Temperature 198 | . 144 198 Average Temperature 80 | . 62 99 Received Heat Transfer 108 | . 48 60 Siege Activations . | . . . Robots Corrupted 1 | . . 1 Combat Hostiles 1 | . . 1 Parts Fried 2 | . . 2 Impact Corruptions . | . . . Robots Melted . | . . . Combat Hostiles . | . . . Parts Melted . | . . . Heat Transferred 50 | . . 50 Parts Sabotaged . | . . . Parts Stolen . | . . . Parts Stripped . | . . . Power Chain Reactions 1 | . . 1 Alert | -11 -10 -10 ------- Run | Yrd Mat Min Peak Influence 90 | . 87 90 Initial 33 | . . 33 Average 43 | . 35 52 Maximum Alert Level . | . . . Low Security (%) 100 | 100 100 100 Level 1 . | . . . Level 2 . | . . . Level 3 . | . . . Level 4 . | . . . Level 5 . | . . . High Security . | . . . Max Security . | . . . Squads Dispatched . | . . . Investigation . | . . . Extermination . | . . . Reinforcement . | . . . Assault . | . . . Garrison . | . . . Intercept . | . . . Searches Triggered . | . . . Construction Impeded . | . . . Haulers Reinforced . | . . . Active Scanning Responses . | . . . Cargo Convoy Interrupts . | . . . Stealth | -11 -10 -10 --------- Run | Yrd Mat Min Distress Signals 2 | . 2 . Communications Jammed . | . . . Distress Signals . | . . . Times Spotted 16 | . 5 11 Peak Tracking Total 3 | . 2 3 Tactical Retreats 2 | . 1 1 Traps | -11 -10 -10 ------- Run | Yrd Mat Min Traps Triggered . | . . . Indirectly . | . . . Trap Hack Attempts . | . . . Triggered . | . . . Disarmed . | . . . Reprogrammed . | . . . Reused . | . . . Traps Extracted . | . . . Installed . | . . . Triggered . | . . . Machines | -11 -10 -10 ---------- Run | Yrd Mat Min Machines Disabled 1 | . 1 . Max in Single Turn 1 | . 1 . Machines Repaired . | . . . Machines Dismantled . | . . . Machines Sabotaged . | . . . Overloaded Fab Kills . | . . . Hacking | -11 -10 -10 --------- Run | Yrd Mat Min Machines Accessed 2 | . 2 . Terminals 2 | . 2 . Fabricators . | . . . Repair Stations . | . . . Recycling Units . | . . . Scanalyzers . | . . . Garrison Access . | . . . Total Hacks 10 | . 10 . Successful 4 | . 4 . Failed 6 | . 6 . Catastrophic . | . . . Database Lockouts . | . . . Manual 6 | . 6 . Terminals 10 | . 10 . Fabricators . | . . . Repair Stations . | . . . Recycling Units . | . . . Scanalyzers . | . . . Garrison Access . | . . . Terminal Hacks 2 | . 2 . Robot Analysis 2 | . 2 . Fabricator Hacks . | . . . Repair Station Hacks . | . . . Recycling Unit Hacks . | . . . Scanalyzer . | . . . Garrison Access Hacks . | . . . Unauthorized Hacks 2 | . 2 . Terminals 2 | . 2 . Botnet 2 | . 2 . Fabricators . | . . . Repair Stations . | . . . Recycling Units . | . . . Scanalyzers . | . . . Garrison Access . | . . . Data Cores Recovered . | . . . Used . | . . . Hacking Detections 2 | . 2 . Full Trace Events . | . . . Feedback Events . | . . . Feedback Blocked . | . . . Robot Schematics Acquired . | . . . Robots Built . | . . . Authchips . | . . . Time . | . . . Total Robot Build Rating . | . . . Part Schematics Acquired . | . . . Parts Built . | . . . Authchips . | . . . Time . | . . . Total Part Build Rating . | . . . Parts Repaired . | . . . Time . | . . . Parts Recycled . | . . . Recycled Matter . | . . . Retrieved Matter . | . . . Retrieved Components . | . . . Parts Scanalyzed . | . . . Part Schematics Acquired . | . . . Parts Damaged . | . . . Bothacking | -11 -10 -10 ------------ Run | Yrd Mat Min Used RIF Installer . | . . . Robots Hacked . | . . . Non-combat . | . . . Combat . | . . . Robot Hacks Applied . | . . . Relay Couplers Released . | . . . Fabnet Peak Effective % . | . . . Robots Rewired . | . . . Allies Hacked . | . . . Hacks Repelled . | . . . Allies | -11 -10 -10 -------- Run | Yrd Mat Min Total Allies 4 | . . 4 Largest Group 4 | . . 4 Highest-Rated Group 71 | . . 71 Highest-Rated Ally 31 | . . 31 Total Orders . | . . . Ally Attacks 7 | . . 7 Total Damage 106 | . . 106 Kills . | . . . Allies Corrupted . | . . . Allies Melted . | . . . Intel | -11 -10 -10 ------- Run | Yrd Mat Min Robot Analysis Total 2 | . 2 . Derelict Logs Recovered 1 | . . 1 Drone Launches . | . . . Drone Recoveries . | . . . Exploration | -11 -10 -10 ------------- Run | Yrd Mat Min Turns Passed 617 | 55 146 416 Spaces Moved 517 | 53 114 350 Core 6 | 6 . . Treads . | . . . Legs 129 | . . 129 Wheels 382 | 47 114 221 Hover . | . . . Flight . | . . . Fastest Speed 50 | 50 80 80 Average Speed 90 | 76 80 95 Slowest Speed 120 | 80 80 120 Overloaded Moves . | . . . Propulsion Burnouts . | . . . Robots Hopped . | . . . Cave-ins Triggered . | . . . Exploration Rate (%) 39 | 3 27 87 Regions Visited 2 Branch Regions 1 Pre-discovered Areas 1 | . . 1 Known Exits Taken . | . . . Unknown Exits Taken 2 | 1 1 . Scrap Searched 2 | . . 2 Spaces Dug . | . . . Terrain Destroyed 64 | . . 64 Melee . | . . . Projectile . | . . . AOE 64 | . . 64 Terrain Rammed . | . . . Walls Destroyed . | . . . Machines Disabled . | . . . Actions | -11 -10 -10 --------- Run | Yrd Mat Min Total 621 | 65 153 403 Wait 51 | . 22 29 Move 515 | 52 113 350 Hop . | . . . Pick Up 12 | 7 4 1 Fast Attach 5 | 4 1 . Attach 4 | 2 . 2 Detach . | . . . Swap 5 | . 2 3 Drop 4 | . 3 1 Fire 25 | . 8 17 Melee . | . . . Ram . | . . . Kick . | . . . Crush . | . . . Escape Stasis . | . . . Rewire . | . . . Trap . | . . . Miscellaneous . | . . . Route ------- -11/Scrapyard -10/Materials -10/Mines (discovered 1 exit: [*Mat]) History --------- Turn | Location | Event 24 | -11/Scrapyard | Discovered new exit (range 14) 56 | -11/Scrapyard | Entered Materials 77 | -10/Materials | Discovered new exit (range 15) 202 | -10/Materials | Entered Mines 270 | -10/Mines | Received a Mining Laser from a helpful Derelict 314 | -10/Mines | Build established: Mutant 333 | -10/Mines | Discovered new exit (range 6) 346 | -10/Mines | Assisted by bots powering up and referring to "LRC-V3" 353 | -10/Mines | Assembled infested the area 358 | -10/Mines | Assisted by a Guerilla fighting off Assembled 396 | -10/Mines | Lost 5 allies 433 | -10/Mines | Core integrity fell below 50% 611 | -10/Mines | Core integrity fell below 20% 618 | -10/Mines | Destroyed by D-53 Grenadier with Mini Grenade Launcher Last Messages --------------- 00558_ Found Lrg. Battery. 00558_ Found Lgt. Ion Engine. 00558_ Found Mining Claw. 00558_ Found 13 Matter. 00559_ Acquired 13 matter. 00583_ Ion Engine destroyed. 00584_ The unstable cave ceiling collapses. 00586_ Grenade Launcher destroyed. 00587_ The unstable cave ceiling collapses. 00588_ K-01 Serf collects debris. 00590_ The unstable cave ceiling collapses. 00591_ K-01 Serf collects debris. 00594_ The unstable cave ceiling collapses. 00596_ K-01 Serf collects debris. 00602_ The unstable cave ceiling collapses. 00602_ K-01 Serf collects debris. 00603_ K-01 Serf destroyed. 00605_ Aluminum Leg destroyed. 00607_ The unstable cave ceiling collapses. 00610_ Grenade Launcher destroyed. Map ----- +----------------------------------------------------+ | ????????????????????????????????#### | | ????????????????????????????????# /! | | ????????????????????????????????# * | | ????????????????????????????????# ##### # | | ????????????????????????????????# #???## ## | | ????????????????????????????????# #????# ### ###? | | ????#####??????????????########## ###??# ### #??? | | ???## ################ #### # #### | | ???# ######### ## # | | ???# #################?????# # # # | | ???## #?????????????????????# # | | ????# #?????????????????????# | | ????# ##????????????????????# | | ????## #??????????????????### ## # # | | ????## #?????????????????## # # | | ???## ##????????????????## #### | | ??## ##?????????????????# ?# ###??? | | ??# ##????????????????### #???#######??? | | ??# ##?????????????????# d #????# """ #??? | | ??# ##????????# ????????# d ##???# """ #??? | | ??# ##????????# ???????# #???# """ #### | | ??## #######??# ????## #????# | | ???## ##?# #### ##???# #### | | ????## #??# #???# < #??? | | ?????###### #???# ##???## ###??? | | ??????????# ####### @ #?????# " ##### | | ??????????# #??## ##########"%" # | | ??????????#### #???## ## ## % | | ?????????????# ###??## #### # # | | ?????????????# #???# #???# # = # | | ?????????????# #???# ????# ## ## | | ?????????????### #???# ?? ?# = ##? | | ???????????????# #???#??? ?#### !% #####?? | | ???????????????# #??????? #??? # = ##?????? | | ???????????????# #??????? #??? ## ##??????? | | ??????????????## #??????? #### # ##??????? | | ??????????????# ######## ## #??????? | | ?????????????## # # # # #?????? | | ???????????### # # #?????? | | ???????????# * # ### ## #?????? | | ???????????## # ##?????? | | ????????????# % # ###### ##??????? | | ???########### # # ## #???????? | | ???# ## #! ## ##??????? | | ???# # # ## #??# ##?????? | | ???# ! ## " #### ## #### ##????? | | ???# !! ##?## ## #####? | | ???# !! #### ###### ## | | ???# !! #### ## """ #???## # | | ???# #??## ### """ #???## | +----------------------------------------------------+ Best States ------------- Heat Dissipation 25 Energy Generation 10 Energy Capacity 250 Matter Stores 300 Matter Capacity 300 Sight Range 16 Terrain Scan Density 10 Power Shielding 33 Evasion (%) 55 Item Schematics ----------------- None Robot Schematics ------------------ None Fabricated ------------ Nothing Alien Tech Used ----------------- None Achievements -------------- None Challenges ------------ None Game ------ Seed BiometalWeldingAutogun Manual? 0 Play Time 00:13:58 Cumulative 53.0 hours Start 2024.03.02 @ 21:37:29 End 2024.03.02 @ 21:48:52 Sessions 1 Manual Loads 0 Difficulty Rogue Special Mode None Game No. 39 Rogue 39 Adventurer 0 Explorer 0 Win Type - Total 2 Types 1/0/0/1/0/0/0/0/0 Lore% 47 Gallery% 50 Achievement% 43 Wizard Run 0 Options --------- Layout 1 ASCII 0 Keyboard 0 Movement Numpad Keybinds 0 Fullscreen 1 Font 20/SmallcapsGlow Map View 50x35 Zoom Use 0% Tactical HUD 1 Map Filters NONE Filters NONE Steam 1 RUN: 44d03f93-72c2-4eaf-b6a3-a60ba0c9e687